bitfinex/quotes_SOLUSD_20240702
["timestamp","ask_amount","ask_price","bid_price","bid_amount"]
[1719919930866,6.9633268,149.86,149.79,6.6757]
[1719919931074,6.6743,149.83,149.78,6.6761]
[1719919931409,23.6462268,149.86,149.77,16.6916]
[1719919931888,6.6738,149.84,149.77,16.6916]
[1719919932184,6.6754,149.81,149.77,16.6916]
[1719919932393,6.6754,149.81,149.77,23.3684]
[1719919932572,6.676,149.79,149.74,23.3732]
[1719919932772,6.6756,149.8,149.74,16.6955]
[1719919933072,6.6763,149.79,149.74,16.6955]
[1719919933384,6.6757,149.8,149.75,6.6774]
[1719919933789,6.6757,149.8,149.76,6.6773]
[1719919934080,45.0,149.85,149.74,16.6955]
[1719919934081,6.6767,149.78,149.74,23.3734]
[1719919934288,6.6761,149.79,149.74,23.3734]
[1719919934588,6.6772,149.77,149.72,6.6787]
[1719919934894,16.6892,149.8,149.71,16.6982]
[1719919934895,45.0,149.79,149.71,16.6982]
[1719919935190,6.6773,149.76,149.72,6.6787]
[1719919936171,16.6915,149.78,149.69,0.4522]
[1719919936372,65.0,149.77,149.69,0.4522]
[1719919936578,20.0,149.77,149.7,6.6796]
[1719919936971,6.6786,149.74,149.69,7.1325]
[1719919937372,6.6788,149.73,149.69,7.1325]
[1719919937771,43.97,149.77,149.69,0.4522]
[1719919937980,6.2702,149.72,149.69,0.4522]
[1719919938179,6.68,149.7,149.69,0.4522]
[1719919939272,36.68,149.7,149.69,0.4522]
[1719919940291,6.68,149.7,149.69,0.4522]
[1719919941692,51.68,149.7,149.69,0.4522]
[1719919942774,95.65,149.7,149.69,0.4522]
[1719919943585,50.65,149.7,149.69,0.4522]
[1719919943787,80.65,149.7,149.69,0.4522]
[1719919944089,6.702,150.02,149.76,100.0]
[1719919944301,0.0641403,150.03,149.8,123.97]
[1719919944302,23.97,150.01,149.8,123.97]
[1719919944479,6.6675,149.99,149.94,6.6692]
[1719919944674,6.6681,149.97,149.93,16.6743]
[1719919944877,6.667,150.0,149.93,84.62146402]
[1719919945079,6.6676,149.98,149.93,16.6743]
[1719919945394,6.668,149.97,149.91,6.6705]
[1719919945593,6.6684,149.96,149.91,6.6705]
[1719919945803,6.6684,149.96,149.9,6.6711]
[1719919945988,6.6684,149.96,149.91,6.6705]
[1719919946700,6.6684,149.96,149.9,6.671]
[1719919947276,6.6679,149.98,149.89,16.6784]
[1719919947485,8.7188064,149.97,149.89,16.6784]
[1719919947691,6.6684,149.96,149.89,16.6784]
[1719919948287,20.79980242,149.97,149.89,16.6784]
[1719919948695,27.46780242,149.97,149.91,6.6706]
[1719919948873,6.6684,149.96,149.91,6.6706]
[1719919949079,41.6654,150.02,149.89,23.3495]
[1719919949279,27.46870242,149.95,149.89,23.3495]
[1719919949588,20.79980242,149.95,149.91,6.6706]
[1719919949994,27.46870242,149.95,149.89,23.3495]
[1719919950409,20.79980242,149.95,149.87,6.6723]
[1719919950694,20.79980242,149.95,149.85,16.6825]
[1719919950925,6.6698,149.93,149.88,6.672]
[1719919951200,27.46960242,149.93,149.88,6.672]
[1719919951383,20.79980242,149.93,149.85,16.6825]
[1719919951700,6.6711,149.9,149.85,23.3554]
[1719919951881,6.6707,149.91,149.86,6.6728]
[1719919952279,6.6706,149.91,149.87,6.6724]
[1719919952689,6.6703,149.92,149.87,6.6724]
[1719919953075,27.47010242,149.92,149.87,6.6724]
[1719919953280,6.6707,149.91,149.86,6.6727]
[1719919953697,6.6711,149.9,149.85,23.3557]
[1719919953881,6.6716,149.89,149.85,23.3557]
[1719919954302,6.6716,149.89,149.85,16.6825]
[1719919955001,20.79980242,149.91,149.85,23.3556]
[1719919955186,6.6721,149.88,149.84,6.6737]
[1719919955594,6.6714,149.9,149.84,6.6737]
[1719919955800,20.79980242,149.91,149.84,23.3574]
[1719919955801,6.6716,149.89,149.84,23.3574]
[1719919956106,6.672,149.88,149.84,23.3574]
[1719919956314,6.672,149.88,149.84,16.6838]
[1719919956484,37.47710242,149.91,149.82,6.6745]
[1719919956795,37.47710242,149.91,149.81,16.6875]
[1719919956796,6.6732,149.86,149.81,16.6875]
[1719919957002,6.6734,149.85,149.81,23.3624]
[1719919957186,45.0,149.89,149.82,6.6745]
[1719919957386,0.5,149.88,149.82,6.6745]
[1719919957593,21.29980242,149.88,149.78,16.6906]
[1719919957779,6.6744,149.83,149.78,23.3667]
[1719919957984,21.29980242,149.88,149.8,6.6753]
[1719919958188,21.29980242,149.88,149.78,16.6906]
[1719919958189,6.6746,149.83,149.78,16.6906]
[1719919958395,6.6738,149.84,149.79,6.6758]
[1719919958596,6.6738,149.84,149.78,16.6906]
[1719919958597,6.6745,149.83,149.78,23.367]
[1719919958803,6.6745,149.83,149.79,6.6759]
[1719919958988,21.29980242,149.88,149.8,16.6883]
[1719919959184,20.0,149.87,149.8,16.6883]
[1719919959691,27.97280242,149.86,149.81,6.675]
[1719919960289,21.29980242,149.86,149.8,23.3637]
[1719919960491,6.6738,149.84,149.8,16.6883]
[1719919960693,6.6738,149.84,149.8,23.3638]
[1719919961482,6.6738,149.84,149.8,16.6883]
[1719919961686,21.29980242,149.86,149.79,6.6755]
[1719919961894,6.6737,149.84,149.8,6.6754]
[1719919962187,6.6733,149.85,149.8,6.6754]
[1719919962386,36.6815,149.87,149.79,16.6891]
[1719919962599,43.64541326,149.87,149.79,16.6891]
[1719919962903,6.6742,149.84,149.79,23.365]
[1719919963107,43.64541326,149.87,149.79,16.6891]
[1719919963892,6.6741,149.84,149.79,23.365]
[1719919964099,6.96391326,149.87,149.81,16.6867]
[1719919964402,6.673,149.86,149.81,16.6867]
[1719919965307,6.6735,149.85,149.81,23.3616]
[1719919965915,6.6743,149.83,149.78,16.6908]
[1719919966089,6.6738,149.84,149.8,6.6752]
[1719919966288,16.6806,149.88,149.69,100.4522]
[1719919966489,6.6737,149.85,149.8,23.3635]
[1719919967801,6.6734,149.85,149.81,6.6747]
[1719919968192,20.0,149.87,149.79,6.6756]
[1719919968490,6.6739,149.84,149.8,6.6754]
[1719919969099,6.6742,149.83,149.79,6.6759]
[1719919969420,6.6751,149.82,149.77,16.6916]
[1719919969624,16.6826,149.86,149.77,16.6916]
[1719919969916,16.6826,149.86,149.73,24.01]
[1719919970097,6.6745,149.83,149.79,6.6758]
[1719919970494,6.6745,149.83,149.79,23.3654]
[1719919971191,16.6826,149.86,149.73,24.01]
[1719919971391,6.6747,149.82,149.78,6.6764]
[1719919971621,45.0,149.85,149.78,6.6761]
[1719919971822,6.6743,149.83,149.79,6.6757]
[1719919972114,16.6826,149.86,149.77,16.692]
[1719919972310,6.6741,149.84,149.79,6.6758]
[1719919972812,16.6826,149.86,149.73,24.01]
[1719919973502,6.6745,149.83,149.79,6.676]
[1719919973820,6.6745,149.83,149.79,23.3658]
[1719919973993,16.6826,149.86,149.79,16.6898]
[1719919974189,6.6746,149.83,149.79,23.3657]
[1719919975317,6.6747,149.82,149.79,16.6898]
[1719919975623,16.6826,149.86,149.73,24.01]
[1719919975800,65.0,149.85,149.73,24.01]
[1719919976601,6.6745,149.83,149.79,6.676]
[1719919976998,16.685,149.84,149.76,16.6931]
[1719919977206,6.6759,149.8,149.76,23.3701]
[1719919978018,45.0,149.83,149.77,6.6769]
[1719919978198,23.1531,149.82,149.7,24.01]
[1719919978405,6.6758,149.8,149.76,6.6772]
[1719919978602,23.1531,149.82,149.75,6.6776]
[1719919978811,6.6758,149.8,149.76,6.677]
[1719919979206,13.1414,149.82,149.77,6.6767]
[1719919979412,6.6752,149.81,149.77,6.6767]
[1719919980322,13.1411,149.82,149.78,6.6764]
[1719919980517,6.6751,149.81,149.77,6.6767]
[1719919981010,6.6751,149.81,149.77,23.3688]
[1719919981320,6.6756,149.8,149.77,16.6921]
[1719919981719,6.676,149.79,149.75,6.6776]
[1719919982906,6.6756,149.8,149.76,6.6772]
[1719919983522,23.3424,149.86,149.73,24.01]
[1719919983705,20.0,149.85,149.73,24.01]
[1719919983901,6.6745,149.83,149.79,6.6759]
[1719919984117,20.0,149.85,149.73,24.01]
[1719919984118,6.6746,149.82,149.78,23.3672]
[1719919984325,6.6743,149.83,149.79,6.6758]
[1719919984515,6.6746,149.82,149.78,23.3671]
[1719919985928,6.6752,149.81,149.77,6.6766]
[1719919986132,20.0,149.85,149.78,6.6763]
[1719919986133,6.6747,149.82,149.78,6.6763]
[1719919986311,6.6751,149.81,149.78,6.6763]
[1719919986720,6.6755,149.81,149.77,23.3686]
[1719919986912,36.6837,149.85,149.77,16.6918]
[1719919987107,6.6751,149.81,149.77,23.3684]
[1719919988628,6.6756,149.8,149.77,16.6918]
[1719919988823,36.6837,149.85,149.77,23.3686]
[1719919989024,6.6759,149.8,149.76,6.6772]
[1719919990317,6.6752,149.81,149.77,6.6768]
[1719919990516,6.6755,149.8,149.76,6.6771]
[1719919990733,6.6755,149.8,149.76,23.3703]
[1719919991026,6.6745,149.83,149.78,16.6909]
[1719919991336,6.6751,149.81,149.78,16.6909]
[1719919991623,6.6748,149.82,149.78,23.3673]
[1719919992725,6.6751,149.81,149.78,16.6909]
[1719919994017,6.6748,149.82,149.78,23.3672]
[1719919994831,6.6758,149.8,149.76,6.6773]
[1719919995409,68.62992731,149.84,149.77,16.692]
[1719919995635,20.0,149.83,149.77,16.692]
[1719919995837,20.0,149.83,149.78,6.6764]
[1719919996035,6.6751,149.81,149.77,23.3687]
[1719919996330,6.6748,149.82,149.78,6.6764]
[1719919997142,6.6756,149.8,149.77,6.6768]
[1719919997316,6.6756,149.8,149.71,24.01]
[1719919997631,6.6756,149.8,149.76,6.677]
[1719919997818,6.676,149.79,149.76,6.677]
[1719919998023,6.676,149.79,149.76,16.6929]
[1719919998430,36.2765,149.83,149.76,23.3701]
[1719919998956,6.6757,149.8,149.76,23.3701]
[1719919999822,6.6752,149.81,149.77,6.6767]
[1719920000025,6.6747,149.82,149.78,6.6764]
[1719920000733,36.2765,149.83,149.78,16.691]
[1719920001635,36.2765,149.83,149.78,23.3673]
[1719920001636,6.6749,149.82,149.78,23.3673]
[1719920002830,42.9509,149.83,149.79,6.6759]
[1719920003034,6.6746,149.82,149.78,23.3672]
[1719920003817,18.6851,149.81,149.78,16.691]
[1719920004318,12.01,149.81,149.78,23.3674]
[1719920004714,36.2765,149.83,149.78,16.691]
[1719920005038,12.01,149.81,149.78,23.3673]
[1719920006127,18.6851,149.81,149.78,16.691]
[1719920006325,12.01,149.81,149.78,23.3674]
[1719920009029,18.6851,149.81,149.78,16.691]
[1719920010037,6.6751,149.81,149.78,16.691]
[1719920010339,18.6851,149.81,149.78,16.691]
[1719920011231,16.2765,149.83,149.69,0.4522]
[1719920011433,18.6869,149.77,149.74,6.678]
[1719920011616,12.01,149.77,149.74,6.678]
[1719920013140,12.01,149.76,149.74,6.678]
[1719920013967,12.01,149.76,149.73,6.6785]
[1719920014325,12.01,149.75,149.72,23.3762]
[1719920014630,12.01,149.76,149.73,6.6786]
[1719920014828,12.01,149.76,149.74,6.6782]
[1719920015333,12.01,149.77,149.74,6.6782]
[1719920016137,18.6869,149.77,149.73,6.6785]
[1719920016534,12.01,149.76,149.73,6.6785]
[1719920016932,6.6769,149.77,149.73,6.6785]
[1719920017131,12.01,149.76,149.73,6.6785]
[1719920017332,12.01,149.74,149.69,17.1526]
[1719920017535,12.01,149.74,149.69,12.4622]
[1719920018051,12.01,149.74,149.72,6.679]
[1719920018423,12.01,149.74,149.71,16.6987]
[1719920018626,12.01,149.74,149.72,6.6791]
[1719920020646,57.01,149.73,149.69,0.4522]
[1719920020964,12.01,149.7,149.69,0.4522]
[1719920024361,6.3023,149.69,149.66,6.6816]
[1719920024648,12.01,149.67,149.65,24.180161]
[1719920024947,6.3023,149.72,149.67,16.7026]
[1719920025152,12.01,149.7,149.67,16.7026]
[1719920025335,12.01,149.7,149.67,23.3839]
[1719920025839,12.01,149.69,149.67,23.3839]
[1719920026042,51.94240943,149.73,149.67,16.7026]
[1719920026344,12.01,149.71,149.68,6.6805]
[1719920026846,12.01,149.71,149.67,16.7026]
[1719920027048,6.6799,149.71,149.67,16.7026]
[1719920027248,15.6987,149.74,149.67,16.7026]
[1719920027249,15.6987,149.74,149.69,16.7009]
[1719920027555,6.0886,149.76,149.71,16.6985]
[1719920027750,12.01,149.74,149.71,16.6985]
[1719920027941,12.01,149.74,149.71,23.3776]
[1719920028139,6.0886,149.76,149.71,16.6985]
[1719920028342,12.01,149.74,149.72,6.6789]
[1719920028855,12.01,149.74,149.71,23.3779]
[1719920029434,18.6883,149.74,149.71,16.6985]
[1719920030139,6.6779,149.75,149.71,6.6795]
[1719920030339,6.5531,149.8,149.75,16.6942]
[1719920030554,6.5531,149.8,149.77,23.3684]
[1719920030774,6.6747,149.82,149.77,23.3683]
[1719920031065,18.6851,149.81,149.77,23.3683]
[1719920031265,6.6747,149.82,149.78,6.6762]
[1719920031436,25.62510974,149.83,149.78,18.6862]
[1719920031760,6.94080974,149.83,149.8,12.01]
[1719920031955,6.94080974,149.83,149.79,16.6896]
[1719920032168,6.94080974,149.83,149.79,28.6996]
[1719920032376,6.94080974,149.83,149.8,6.6751]
[1719920032539,6.94080974,149.83,149.8,18.6851]
[1719920033044,6.94080974,149.83,149.81,6.675]
[1719920033254,6.94080974,149.83,149.82,6.6746]
[1719920033437,18.6832,149.86,149.81,18.685]
[1719920033632,18.6832,149.86,149.81,6.675]
[1719920033954,6.6732,149.86,149.81,6.675]
[1719920034473,6.6732,149.86,149.79,16.6896]
[1719920034767,6.6732,149.86,149.82,6.6746]
[1719920034949,6.6725,149.87,149.82,6.6746]
[1719920035570,6.6725,149.87,149.81,16.6872]
[1719920035571,23.61556368,149.89,149.81,16.6872]
[1719920036237,20.0,149.88,149.81,16.6872]
[1719920036875,6.6734,149.85,149.81,23.3621]
[1719920038657,6.6729,149.86,149.82,6.6746]
[1719920039071,6.6733,149.85,149.81,23.3622]
[1719920040369,6.673,149.86,149.81,23.3622]
[1719920041459,6.93636368,149.89,149.84,6.6736]
[1719920042051,6.6723,149.88,149.84,6.6736]
[1719920042372,13.60796368,149.89,149.85,6.6732]
[1719920042665,0.25,149.9,149.81,0.4631]
[1719920043259,6.6716,149.89,149.85,6.6732]
[1719920043460,6.6716,149.89,149.85,23.3558]
[1719920044376,6.9211,149.9,149.86,6.6727]
[1719920044565,6.6716,149.89,149.85,23.3559]
[1719920046486,6.9212,149.9,149.86,6.6728]
[1719920047076,6.9212,149.9,149.89,6.6715]
[1719920047077,0.25,149.9,149.89,6.6715]
[1719920048064,3.48505455,149.99,149.88,100.0]
[1719920048266,3.48505455,149.99,149.97,23.3366]
[1719920048469,3.48505455,149.99,149.97,16.669]
[1719920048767,3.48505455,149.99,149.98,6.6675]
[1719920049197,3.48505455,149.99,149.95,6.6685]
[1719920049487,3.48505455,149.99,149.97,6.6679]
[1719920049694,3.48505455,149.99,149.91,24.2131]
[1719920050186,6.6658,150.02,149.97,6.6678]
[1719920050566,13.44157673,150.04,149.96,16.6705]
[1719920050766,6.6665,150.01,149.96,23.3388]
[1719920050968,13.44157673,150.04,149.96,6.6683]
[1719920050969,6.6667,150.0,149.96,6.6683]
[1719920051283,6.6662,150.01,149.96,6.6683]
[1719920051781,6.7295403,150.03,149.98,6.6673]
[1719920051963,6.7295403,150.03,149.99,6.667]
[1719920052283,0.0641403,150.03,150.0,6.6664]
[1719920052459,0.0641403,150.03,150.02,23.3301]
[1719920053268,0.0641403,150.03,150.02,47.5433]
[1719920054475,0.0641403,150.03,150.02,23.3301]
[1719920055901,0.0641403,150.03,149.99,16.6675]
[1719920056202,0.0641403,150.03,150.02,6.6657]
[1719920056882,0.0641403,150.03,149.96,24.0]
[1719920057183,0.0641403,150.03,150.01,6.666]
[1719920057673,0.0641403,150.03,149.98,6.6674]
[1719920057988,0.0641403,150.03,149.97,16.6695]
[1719920057989,0.0641403,150.03,149.99,6.6667]
[1719920058294,0.0641403,150.03,149.98,6.6674]
[1719920058470,6.7295403,150.03,149.99,6.667]
[1719920059566,0.0641403,150.03,149.97,16.6695]
[1719920059796,6.7294403,150.03,149.99,6.6669]
[1719920059967,6.6665,150.01,149.97,16.6695]
[1719920060171,6.6659,150.02,149.97,23.3374]
[1719920060492,6.6662,150.01,149.97,23.3374]
[1719920060989,0.0641403,150.03,149.93,24.0]
[1719920061187,0.0641403,150.03,150.0,6.6666]
[1719920061588,0.0641403,150.03,149.93,24.0]
[1719920061797,0.0641403,150.03,149.98,6.6675]
[1719920061798,6.6661,150.02,149.98,6.6675]
[1719920062293,0.0641403,150.03,150.02,6.6657]
[1719920062606,5.1824403,150.11,150.01,24.0]
[1719920062898,11.8442403,150.11,150.06,6.6636]
[1719920063074,11.8442403,150.11,150.06,23.3234]
[1719920063270,5.1824403,150.11,150.09,6.6625]
[1719920063494,5.1824403,150.11,150.06,6.6639]
[1719920063694,11.8443403,150.11,150.06,6.6639]
[1719920064195,5.1824403,150.11,150.1,6.6622]
[1719920064372,5.1824403,150.11,150.01,24.0]
[1719920064373,5.1824403,150.11,150.05,6.6643]
[1719920064566,5.1824403,150.11,150.07,6.6634]
[1719920065274,5.1824403,150.11,150.08,6.6627]
[1719920065479,5.1824403,150.11,150.07,6.6635]
[1719920065888,6.6626,150.1,150.05,6.6641]
[1719920066083,5.1824403,150.11,150.0,24.0]
[1719920066523,5.1824403,150.11,150.05,16.6607]
[1719920066794,5.1824403,150.11,150.07,6.6631]
[1719920067195,5.1824403,150.11,150.05,16.6607]
[1719920067498,11.8443403,150.11,150.07,6.6632]
[1719920067875,6.90238805,150.13,150.11,6.6615]
[1719920068192,6.6612,150.13,150.09,23.3186]
[1719920068377,6.6612,150.13,150.09,16.6561]
[1719920068574,6.6614,150.12,150.09,16.6561]
[1719920068779,6.6614,150.12,150.08,6.6627]
[1719920068984,6.6614,150.12,150.06,16.6593]
[1719920069190,0.03962448,150.14,150.06,23.3232]
[1719920069484,6.6618,150.11,150.06,23.3232]
[1719920069685,6.6618,150.11,150.06,16.6593]
[1719920069873,6.6618,150.11,150.07,6.6634]
[1719920070073,45.03962448,150.14,150.07,6.6635]
[1719920070276,45.03962448,150.14,150.07,6.6634]
[1719920070485,45.03962448,150.14,150.06,23.3232]
[1719920070680,6.6621,150.11,150.06,23.3232]
[1719920070883,6.6613,150.12,150.08,6.663]
[1719920071099,45.03962448,150.14,150.08,23.3202]
[1719920071312,6.6618,150.11,150.08,16.6573]
[1719920071608,6.6614,150.12,150.07,6.6635]
[1719920071810,61.69132448,150.14,150.05,23.3244]
[1719920071995,6.6623,150.1,150.06,6.6638]
[1719920072298,61.69132448,150.14,149.99,1.4428]
[1719920072299,16.6537,150.12,149.99,1.4428]
[1719920072498,45.03962448,150.14,150.04,16.6617]
[1719920072677,45.03962448,150.14,150.05,6.6642]
[1719920072678,6.6625,150.1,150.05,6.6642]
[1719920072870,6.6625,150.1,150.06,6.6638]
[1719920073078,6.6618,150.11,150.07,6.6635]
[1719920073374,6.6622,150.1,150.06,6.6638]
[1719920073573,6.6622,150.1,150.06,23.3232]
[1719920073972,6.6624,150.1,150.06,16.6594]
[1719920074190,6.6627,150.09,150.05,6.6643]
[1719920074499,6.6623,150.1,150.06,6.6637]
[1719920074876,6.6626,150.09,150.05,23.3246]
[1719920075102,6.6623,150.1,150.06,6.6639]
[1719920075791,6.6612,150.13,149.99,25.4428]
[1719920075992,45.0,150.12,149.99,25.4428]
[1719920076182,69.03962448,150.14,149.99,25.4428]
[1719920076389,6.6632,150.08,150.04,6.6645]
[1719920076590,6.6627,150.09,150.05,6.664]
[1719920077087,6.6629,150.09,150.05,6.664]
[1719920077396,16.6536,150.12,149.99,1.4428]
[1719920077604,6.6628,150.09,150.05,6.6642]
[1719920078100,6.6628,150.09,150.03,16.6629]
[1719920078101,6.6628,150.09,150.04,6.6647]
[1719920078597,6.91779254,150.1,150.03,16.6629]
[1719920078775,45.0,150.08,150.05,6.6643]
[1719920079676,6.6629,150.09,150.05,6.6643]
[1719920081543,6.6635,150.08,150.04,6.6647]
[1719920081711,6.6627,150.09,150.05,6.6644]
[1719920082005,6.6627,150.09,150.03,16.6629]
[1719920082006,51.6632,150.08,150.03,16.6629]
[1719920082382,16.5095,150.09,150.03,16.6629]
[1719920082383,23.1722,150.09,150.03,16.6629]
[1719920082586,23.1722,150.09,150.05,6.664]
[1719920082885,45.0,150.08,150.05,6.6643]
[1719920083091,45.0,150.08,150.04,6.6647]
[1719920083092,6.6632,150.08,150.04,6.6647]
[1719920083291,6.6635,150.07,150.03,23.328]
[1719920083592,16.5095,150.09,150.03,16.6629]
[1719920083797,6.6631,150.08,150.04,6.6646]
[1719920084905,6.6636,150.07,150.03,23.328]
[1719920085196,6.6643,150.06,149.98,0.2132]
[1719920085376,45.0,150.07,150.02,23.3295]
[1719920085577,51.6637,150.07,150.02,16.6638]
[1719920085802,51.6637,150.07,150.03,6.6653]
[1719920086504,51.6637,150.07,150.02,23.3295]
[1719920086505,6.664,150.06,150.02,23.3295]
[1719920086886,6.6644,150.05,150.02,16.6638]
[1719920087295,6.664,150.06,150.02,23.3294]
[1719920088107,51.6636,150.07,150.03,6.6652]
[1719920088405,6.664,150.06,150.02,23.3294]
[1719920089028,6.6645,150.05,150.02,16.6638]
[1719920089190,16.6607,150.06,149.95,1.4428]
[1719920089394,6.6652,150.04,150.0,6.6666]
[1719920089588,51.92051596,150.07,149.95,1.4428]
[1719920089792,20.0,150.06,149.95,1.4428]
[1719920089992,45.0,150.05,149.95,1.4428]
[1719920090304,51.6645,150.05,150.01,6.6661]
[1719920090505,20.0,150.06,150.0,16.6662]
[1719920090704,6.6644,150.05,150.01,6.6659]
[1719920091109,6.6648,150.04,150.0,23.3326]
[1719920091289,6.6644,150.05,150.01,6.666]
[1719920091481,20.0,150.06,150.0,16.6662]
[1719920091686,6.6648,150.05,150.01,6.6662]
[1719920094608,26.664,150.06,150.02,6.6656]
[1719920094994,6.6645,150.05,150.01,6.666]
[1719920095801,13.68,150.04,150.01,6.666]
[1719920095999,26.6641,150.06,150.02,6.6657]
[1719920096198,13.68,150.04,150.02,6.6657]
[1719920096397,6.92051596,150.07,150.03,1.656]
[1719920096603,6.6593,150.17,150.13,6.6608]
[1719920096796,6.6593,150.17,150.12,6.6613]
[1719920096999,13.68,150.15,150.13,6.6608]
[1719920097202,6.6592,150.17,150.13,6.6608]
[1719920097415,13.68,150.16,150.12,23.3144]
[1719920097711,6.6592,150.17,150.12,23.3144]
[1719920097889,6.6597,150.16,150.12,23.3144]
[1719920098092,6.66,150.15,150.12,16.6532]
[1719920098310,0.8574013,150.18,150.04,27.32]
[1719920098502,6.6599,150.16,150.11,6.6614]
[1719920098694,0.8574013,150.18,150.12,6.6611]
[1719920099896,6.6594,150.17,150.12,6.6611]
[1719920100404,0.8574013,150.18,150.05,27.32]
[1719920100405,0.8574013,150.18,150.13,6.6608]
[1719920101195,0.8574013,150.18,150.13,8.3168]
[1719920101501,0.8574013,150.18,150.13,8.1036]
[1719920103023,0.8574013,150.18,150.13,9.43545894]
[1719920103212,0.8574013,150.18,150.13,8.1036]
[1719920104108,0.8574013,150.18,150.13,9.43547101]
[1719920104936,0.8574013,150.18,150.13,35.4236]
[1719920105099,2.448e-05,150.14,150.13,35.4236]
[1719920107630,2.448e-05,150.14,150.13,9.4352245]
[1719920107830,2.448e-05,150.14,150.13,8.1036]
[1719920108121,2.448e-05,150.14,150.13,9.43532917]
[1719920108630,2.448e-05,150.14,150.13,6.6608]
[1719920108809,2.448e-05,150.14,150.13,7.99257624]
[1719920109007,2.448e-05,150.14,150.13,6.6608]
[1719920110114,2.448e-05,150.14,150.13,7.99247472]
[1719920110628,2.448e-05,150.14,150.13,6.6608]
[1719920110827,2.448e-05,150.14,150.13,7.99263373]
[1719920111546,2.448e-05,150.14,150.13,6.6608]
[1719920114514,2.448e-05,150.14,150.13,7.99272323]
[1719920114720,2.448e-05,150.14,150.13,6.6608]
[1719920118020,2.448e-05,150.14,150.12,16.6525]
[1719920119120,2.448e-05,150.14,150.05,1.656]
[1719920119515,2.448e-05,150.14,150.06,27.32]
[1719920121835,2.448e-05,150.14,150.13,6.6608]
[1719920122223,2.448e-05,150.14,150.12,6.6611]
[1719920122432,2.448e-05,150.14,150.11,16.6536]
[1719920122627,2.448e-05,150.14,150.12,6.661]
[1719920122837,2.448e-05,150.14,150.13,6.6608]
[1719920123426,6.66042448,150.14,150.1,6.6622]
[1719920123642,2.448e-05,150.14,150.06,27.32]
[1719920125826,2.448e-05,150.14,150.03,32.00837629]
[1719920126038,22.7926,150.13,150.03,27.32]
[1719920126342,16.1315,150.13,150.03,27.32]
[1719920127057,2.448e-05,150.14,150.03,27.32]
[1719920127233,2.448e-05,150.14,150.13,6.6608]
[1719920142754,2.448e-05,150.14,150.13,20.3208]
[1719920145054,2.448e-05,150.14,150.11,16.6539]
[1719920145361,2.448e-05,150.14,150.11,30.3139]
[1719920145747,2.448e-05,150.14,150.11,16.6539]
[1719920145944,2.448e-05,150.14,150.11,30.3139]
[1719920146141,2.448e-05,150.14,150.11,16.6539]
[1719920153054,2.448e-05,150.14,150.13,13.66]
[1719920154472,2.448e-05,150.14,150.12,13.66]
[1719920155563,2.448e-05,150.14,150.11,16.6539]
[1719920156075,2.448e-05,150.14,150.11,30.3139]
[1719920156377,2.448e-05,150.14,150.13,6.6608]
[1719920156671,2.448e-05,150.14,150.11,16.6539]
[1719920158655,13.66002448,150.14,150.11,16.6539]
[1719920158866,13.66,150.13,150.11,16.6539]
[1719920160052,13.66,150.12,150.11,16.6539]
[1719920160255,2.448e-05,150.14,150.11,16.6539]
[1719920161370,13.66,150.13,150.11,16.6539]
[1719920162861,13.66,150.12,150.11,16.6539]
[1719920163056,2.448e-05,150.14,150.11,16.6539]
[1719920164069,13.66,150.13,150.11,16.6539]
[1719920164648,2.448e-05,150.14,150.11,16.6539]
[1719920164854,2.448e-05,150.14,150.11,30.3139]
[1719920165268,2.448e-05,150.14,150.11,16.6539]